[Event "Uruguayan Championship 2022"]
[Site "Montevideo"]
[Date "2022.04.15"]
[Round "8.3"]
[White "Carvalho, Guillermo"]
[Black "Coppola, Claudio"]
[Result "0-1"]
[ECO "A25"]
[WhiteElo "2171"]
[BlackElo "2285"]
[Annotator "TA"]
[PlyCount "114"]
[EventDate "2022.04.08"]
[EventType "tourn"]
[EventCountry "URU"]
[SourceTitle "playchess.com"]
[Source "ChessBase"]
[SourceQuality "1"]
[TimeControl "40/5400+30:1800+30"]

{[%evp 10,114,16,19,45,47,43,43,54,37,52,6,46,-13,15,-2,35,-60,-71,-185,-206,-239,-199,-195,-185,-201,-120,-139,-90,-90,-101,-91,-86,-85,-96,-88,-28,-29,-30,-35,-32,-35,-25,-43,-39,-43,-25,-40,-22,-27,-28,-42,-38,-58,-31,-207,-207,-204,-221,-220,-228,-216,-191,-244,-244,-248,-176,-305,-301,-301,-304,-268,-268,-308,-306,-323,-305,-293,-292,-438,-437,-500,-499,-495,-433,-487,-461,-510,-510,-506,-479,-463,-462,-12832,-7122,-5524,-4866,-12841,-12841,-12841,-12842,-12842,-12843,-12843,-217,-12844,-12843]} 1. c4 {[%emt 0:00:06]} e5 {[%emt 0:00:20]} 2. Nc3 {[%emt 0:00:10]} Nc6 {[%emt 0:00:26]} 3. g3 {[%emt 0:00:09]} f5 {[%emt 0:00:16]} 4. Bg2 {[%emt 0:00:56]} Nf6 {[%emt 0:00:03]} 5. d3 {[%emt 0:03:21]} Bb4 {[%emt 0:00:09]} 6. Bd2 {[%emt 0:05:59]} Bxc3 {[%emt 0:00:27] A25: English Opening vs King's Indian with ...Nc6 but without early d3.} 7. Bxc3 {[%emt 0:00:16]} d6 {[%emt 0:00:12]} 8. e3 {[%emt 0:05:26]} O-O {[%emt 0:00:31] White is slightly better.} 9. Ne2 {[%emt 0:00:22]} Qe8 {[%emt 0:00:38]} 10. d4 {[%emt 0:01:16] [#]} (10. O-O $14) 10... Qh5 $146 {[%emt 0:11:53]} ({Predecessor:} 10... e4 11. b4 d5 12. Nf4 Ne7 13. Qb3 c6 14. h4 dxc4 15. Qxc4+ Ned5 16. Bf1 Qf7 17. Nxd5 Nxd5 {½-½ (41) Hill,A (2186)-Lund,D (2258) England 2018}) 11. d5 {[%emt 0:15:07]} (11. Bxc6 $14 exd4 12. Nxd4 bxc6 13. Qxh5 (13. Nxc6 Qe8 $14) 13... Nxh5 14. Nxc6) 11... Ne7 {[%emt 0:02:31]} 12. f3 {[%emt 0:05:52]} b5 {[%emt 0:16:13][%cal Bb7b5,Bb5c4,Bc4d3][%mdl 32]} 13. b3 {[%emt 0:02:33]} (13. f4 $1 $14) 13... Ba6 $15 {[%emt 0:01:40]} 14. O-O {[%emt 0:01:58]} (14. f4 $17) 14... bxc4 $19 {[%emt 0:01:12]} 15. g4 {[%emt 0:01:47]} fxg4 {[%emt 0:03:14]} 16. Ng3 {[%emt 0:00:19]} Qg6 {[%emt 0:03:17] Threatens to win with ...cxb3.} 17. f4 {[%emt 0:00:33]} exf4 {[%emt 0:12:44]} (17... cxb3 $19 18. fxe5 {[#]} b2 $1) 18. Rxf4 $17 {[%emt 0:00:32]} Qd3 {[%emt 0:00:34]} (18... h5 $142 19. bxc4 Nd7) 19. Qxd3 {[%emt 0:10:14]} cxd3 {[%emt 0:00:02]} 20. Bxf6 {[%emt 0:01:22]} Rxf6 {[%emt 0:00:23]} 21. Ra4 {[%emt 0:00:13]} Bb7 {[%emt 0:11:09]} 22. Rd4 {[%emt 0:00:26]} Nf5 {[%emt 0:00:21]} (22... c5 $17 23. dxc6 Bxc6) 23. Nxf5 $11 {[%emt 0:06:01]} Rxf5 {[%emt 0:00:03]} 24. Rxd3 {[%emt 0:00:29]} Re8 {[%emt 0:04:05]} 25. e4 {[%emt 0:00:39]} Rf7 {[%emt 0:00:47]} 26. Rc3 {[%emt 0:03:03]} h5 {[%emt 0:01:01]} 27. Rac1 {[%emt 0:00:33]} Ree7 {[%emt 0:00:19]} 28. Rc4 {[%emt 0:05:01]} h4 {[%emt 0:06:58]} 29. Rb4 {[%emt 0:04:11]} Bc8 {[%emt 0:00:26]} 30. Bf1 {[%emt 0:02:39]} Rf8 {[%emt 0:07:24]} 31. Bd3 {[%emt 0:00:50]} g3 {[%emt 0:01:40]} (31... Rf3 $5 {[%cal Rf3d3]} 32. Be2 Re3 $15) 32. Rb8 $2 {[%emt 0:02:08] This move loses the game for White.} (32. hxg3 $15 a5 33. Rb8) 32... g2 $19 {[%emt 0:03:52]} 33. Kxg2 {[%emt 0:09:50] [#]} Bh3+ $1 {[%emt 0:00:23][%mdl 512]} 34. Kxh3 {[%emt 0:00:07] Strongly threatening Rxf8+.} Rxb8 {[%emt 0:00:03]} 35. Kxh4 {[%emt 0:00:29][%mdl 4096] Endgame KRR-KRB} Rb4 {[%emt 0:05:55]} 36. Kg3 {[%emt 0:01:27]} (36. Re1 $142) 36... Rd4 {[%emt 0:00:04]} 37. Rc3 {[%emt 0:00:29]} Rf7 {[%emt 0:00:18]} 38. e5 {[%emt 0:01:24]} (38. h4 $142) 38... dxe5 {[%emt 0:01:57]} 39. Bc4 {[%emt 0:02:19]} Kf8 {[%emt 0:01:59]} 40. d6 {[%emt 0:00:14]} Rd7 {[%emt 0:01:06]} ({Worse is} 40... cxd6 41. Bxf7 Kxf7 42. Rc7+ Kf6 43. Rxa7 $17) 41. dxc7 {[%emt 0:32:24]} Rxc7 {[%emt 0:30:10]} 42. Re3 {[%emt 0:01:33]} Re7 {[%emt 0:01:27]} 43. h3 {[%emt 0:00:13]} Ke8 {[%emt 0:02:25]} 44. a4 {[%emt 0:00:35]} (44. Kf3 {was necessary.}) 44... Kd7 {[%emt 0:00:00]} 45. Kf2 {[%emt 0:00:00]} Kd6 {[%emt 0:00:00]} 46. Rg3 {[%emt 0:00:00]} Kc5 {[%emt 0:00:00]} 47. Ke3 {[%emt 0:00:00]} Kb4 {[%emt 0:00:00]} 48. Rg5 {[%emt 0:00:00]} Rh4 {[%emt 0:00:00] Inhibits Rh5.} 49. Rg3 {[%emt 0:00:00]} a5 {[%emt 0:00:00]} 50. Bd5 {[%emt 0:00:00]} Rc7 {[%emt 0:00:00]} 51. Ke2 {[%emt 0:00:00]} (51. Bc4 $142 Rd7 52. Bg8) 51... Rc2+ {[%emt 0:00:00]} 52. Ke1 {[%emt 0:00:00]} Rc3 {[%emt 0:00:00]} 53. Rxg7 {[%emt 0:00:00]} Rhxh3 {[%emt 0:00:00]} 54. Rg4+ {[%emt 0:00:00]} Ka3 {[%emt 0:00:00]} 55. Rg2 {[%emt 0:00:00]} Rhe3+ {[%emt 0:00:00]} 56. Kf1 {[%emt 0:00:00]} Rc1+ {[%emt 0:00:00]} 57. Kf2 {[%emt 0:00:00]} Rd3 {[%emt 0:00:00] Weighted Error Value: White=0.47/Black=0.19 (very precise)} 0-1

[Event "Uruguayan Championship 2022"]
[Site "Montevideo"]
[Date "2022.04.15"]
[Round "8.4"]
[White "Granara Barreto, Sebastian"]
[Black "Carbone, Diego"]
[Result "0-1"]
[ECO "C45"]
[WhiteElo "2131"]
[BlackElo "2272"]
[Annotator "TA"]
[PlyCount "116"]
[EventDate "2022.04.08"]
[EventType "tourn"]
[EventCountry "URU"]
[SourceTitle "playchess.com"]
[Source "ChessBase"]
[SourceQuality "1"]
[TimeControl "40/5400+30:1800+30"]

{[%evp 19,116,0,36,30,23,24,41,37,40,2,12,17,47,39,50,50,60,68,48,44,76,37,41,13,33,40,27,0,22,0,37,0,106,0,95,94,95,99,100,89,95,72,73,74,115,54,61,0,148,0,85,52,97,0,40,10,41,-121,-110,-104,-114,-106,-114,-116,0,0,0,-23,-28,-218,-210,-206,-140,-132,-122,-124,-105,-155,-153,-141,-142,-141,-136,-126,-91,-243,-238,-299,-291,-283,-180,-586,-554,-546,-524,-496,-475,-475,-344]} 1. e4 {[%emt 0:00:03]} e5 {[%emt 0:00:58]} 2. Nf3 {[%emt 0:00:07]} Nc6 {[%emt 0:00:05]} 3. d4 {[%emt 0:00:03]} exd4 4. Nxd4 {[%emt 0:00:06]} Nf6 {[%emt 0:01:59][%cal Bg8f6,Bf6d5,Bd5b6][%mdl 32]} 5. Nxc6 {[%emt 0:00:24]} bxc6 {[%emt 0:00:06]} 6. e5 {[%emt 0:00:03]} Qe7 {[%emt 0:00:14]} 7. Qe2 {[%emt 0:00:05]} Nd5 {[%emt 0:00:31]} 8. c4 {[%emt 0:00:05]} Nb6 {[%emt 0:00:43]} 9. Nc3 {[%emt 0:00:53]} Ba6 {[%emt 0:01:36]} 10. Qe4 {[%emt 0:01:38]} Qe6 {[%emt 0:00:31][%cal Ra6c4] The old main line.} (10... Qb4 11. Be2 $14) (10... g6 $5 {[%cal Rf8g7]}) 11. b3 {[%emt 0:03:28] C45: Scotch Game.} Bb4 {[%emt 0:00:30]} 12. Bd2 {[%emt 0:01:37]} Bxc3 {[%emt 0:00:28]} 13. Bxc3 {[%emt 0:00:06] White is slightly better.} d5 {[%emt 0:00:06]} 14. Qf3 {[%emt 0:11:08] Threatens to win with cxd5.} dxc4 {[%emt 0:00:55]} 15. Be2 {[%emt 0:00:38]} O-O-O {[%emt 0:02:07]} 16. O-O {[%emt 0:09:35]} Kb7 {[%emt 0:01:03] [#]} 17. Rfb1 $146 {[%emt 0:04:24]} ({Predecessor:} 17. Rfc1 h5 18. Bf1 g5 19. Qe2 g4 20. Bb2 h4 21. a4 h3 22. g3 Ka8 23. a5 {½-½ (61) Timman,J (2578)-Das,A (2416) Helsingor 2017}) 17... cxb3 {[%emt 0:17:17]} 18. axb3 {[%emt 0:07:44]} Bxe2 {[%emt 0:00:28]} 19. Qxe2 {[%emt 0:00:09] aiming for Qa6+.} Kb8 {[%emt 0:01:45]} 20. Qa6 {[%emt 0:00:50][%mdl 1024] White has strong compensation.} Nc8 {[%emt 0:00:26]} 21. Ra4 {[%emt 0:05:34]} c5 {[%emt 0:10:49]} 22. Qb5+ {[%emt 0:13:57]} Nb6 {[%emt 0:04:06]} 23. Qa6 {[%emt 0:16:22]} (23. Qxc5 Nxa4 24. bxa4+ Ka8 $17) 23... Nc8 {[%emt 0:04:53]} 24. Qb5+ {[%emt 0:01:18]} Nb6 $1 {[%emt 0:01:05]} 25. Qa6 {[%emt 0:00:06]} (25. Qxc5 Nxa4 26. bxa4+ Ka8 $17) 25... Qd5 {[%emt 0:03:02]} (25... Nc8 $11 {keeps the balance.}) 26. Qxa7+ $16 {[%emt 0:01:45]} Kc8 {[%emt 0:00:02][%cal Od5d1]} 27. Raa1 {[%emt 0:03:04]} Qb7 {[%emt 0:03:38]} 28. Qa3 {[%emt 0:03:17]} Rd5 {[%emt 0:01:03]} 29. Rc1 {[%emt 0:03:33]} Rhd8 {[%emt 0:02:08]} 30. h3 {[%emt 0:00:10]} Qc6 {[%emt 0:02:40]} 31. Qa6+ {[%emt 0:00:54]} Kb8 {[%emt 0:07:04]} 32. Qa7+ {[%emt 0:00:22]} (32. h4 $16) 32... Kc8 $14 {[%emt 0:00:02]} 33. Qa6+ {[%emt 0:00:07]} (33. Qa2 $14) 33... Qb7 {[%emt 0:05:27]} (33... Kb8 $1 $11) 34. Qa3 {[%emt 0:01:23]} (34. Qe2 $16) 34... g6 {[%emt 0:03:22]} (34... Qc6 $1 $11) 35. Ba5 {[%emt 0:02:00]} Qc6 {[%emt 0:05:39]} 36. Bc3 {[%emt 0:01:13]} ({White should play} 36. b4 $16) 36... Qb5 {[%emt 0:01:35]} 37. Qb2 {[%emt 0:02:05][%cal Oe5e6]} Kb7 {[%emt 0:02:49]} 38. Ra5 $2 {[%emt 0:01:59]} (38. Rab1 $14 {stays ahead.}) 38... Rd1+ $17 {[%emt 0:02:39]} 39. Rxd1 {[%emt 0:04:54]} Rxd1+ {[%emt 0:00:19]} 40. Kh2 {[%emt 0:00:06]} Qf1 {[%emt 0:07:49] &Nero is more active.} 41. Qc2 {[%emt 0:31:45]} Rd5 {[%emt 0:33:08]} ({Better is} 41... h5 $1 $17 {[%cal Rh5h4]} 42. Qe4+ Kb8) 42. Bb2 {[%emt 0:00:00]} Nd7 {[%emt 0:00:00]} 43. e6 {[%emt 0:00:00]} fxe6 {[%emt 0:00:00] Threatening ...Qd3.} 44. Qe4 {[%emt 0:00:00]} (44. Bc3 $11) 44... Qxf2 $19 {[%emt 0:00:00]} ({Inferior is} 44... c6 45. Qa4 (45. Qc4 $2 Qxf2 46. Bg7 Rd1 $19) 45... Qxf2 46. Ra7+ (46. Ra8 Kc7 $17) 46... Kb8 47. Be5+ $1 Nxe5 48. Ra8+ Kc7 49. Qa7+ Kd6 50. Rd8+ Nd7 51. Rxd7+ Ke5 52. Rf7 $11) 45. Bc1 {[%emt 0:00:46]} Qd4 {[%emt 0:00:00]} 46. Qxe6 {[%emt 0:00:13] Qa6+ would kill now.} Qe5+ {[%emt 0:00:00]} 47. Qxe5 {[%emt 0:00:04]} Rxe5 $17 {[%emt 0:00:00][%mdl 4096] Endgame KRB-KRN} 48. Bf4 {[%emt 0:00:46]} (48. Ra2 $142) 48... Re4 {[%emt 0:00:00]} 49. Kg3 {[%emt 0:00:12]} Rb4 {[%emt 0:00:00]} 50. Ra3 {[%emt 0:00:08]} Nf6 {[%emt 0:00:00] Strongly threatening ...Nh5+.} 51. Kf3 {[%emt 0:00:10]} Ne4 {[%emt 0:00:00]} 52. Ra4 $2 {[%emt 0:02:24]} (52. Be3 $17) 52... Nd6 $19 {[%emt 0:00:01]} 53. Rxb4+ {[%emt 0:00:29]} cxb4 {[%emt 0:00:02] KB-KN} 54. Ke3 {[%emt 0:00:20] [#]} Nb5 {[%emt 0:01:32] And now ...c5 would win.} 55. Kd3 $2 {[%emt 0:01:02]} (55. Ke4) 55... c5 {[%emt 0:00:35] Black is clearly winning.} 56. Kc4 {[%emt 0:00:52]} Kc6 {[%emt 0:00:09]} 57. Be3 {[%emt 0:00:28]} Nd6+ {[%emt 0:00:30]} 58. Kd3 {[%emt 0:00:03]} Kd5 {[%emt 0:00:06] Weighted Error Value: White=0.46/Black=0.22 (precise)} 0-1

[Event "Uruguayan Championship 2022"]
[Site "Montevideo"]
[Date "2022.04.15"]
[Round "8.5"]
[White "Palacio, Enzo"]
[Black "Roselli Mailhe, Bernardo"]
[Result "1/2-1/2"]
[ECO "C04"]
[WhiteElo "1896"]
[BlackElo "2426"]
[Annotator "TA"]
[PlyCount "40"]
[EventDate "2022.04.08"]
[EventType "tourn"]
[EventCountry "URU"]
[SourceTitle "playchess.com"]
[Source "ChessBase"]
[SourceQuality "1"]
[TimeControl "40/5400+30:1800+30"]

{[%evp 15,40,0,22,-46,13,-51,0,0,0,-3,43,43,44,43,77,80,119,118,169,162,155,181,234,177,176,168,167]} 1. e4 {[%emt 0:00:03]} e6 {[%emt 0:00:25]} 2. d4 {[%emt 0:00:08]} d5 {[%emt 0:00:06]} 3. Nd2 {[%emt 0:00:05]} Nc6 {[%emt 0:01:01]} 4. Ngf3 {[%emt 0:04:03]} Nf6 {[%emt 0:00:25]} 5. e5 {[%emt 0:03:35]} Nd7 {[%emt 0:00:13]} 6. Bb5 {[%emt 0:03:57]} a6 {[%emt 0:03:31]} 7. Bxc6 {[%emt 0:02:23]} bxc6 {[%emt 0:00:05]} 8. Nb3 {[%emt 0:04:03]} c5 {[%emt 0:03:22]} 9. c3 {[%emt 0:04:00] C04: French Tarrasch: 3...Nc6.} (9. Bg5 $11 Be7 10. Bxe7 Qxe7 11. c3) 9... cxd4 {[%emt 0:08:00]} (9... c4 $15 10. Nbd2 c5) 10. cxd4 {[%emt 0:00:13]} ({Better is} 10. Bg5 $11 Be7 11. Bxe7 Qxe7 12. cxd4) 10... c5 {[%emt 0:00:25]} (10... a5 $1 $15 {was preferrable.}) 11. dxc5 $11 {[%emt 0:09:45] The position is equal.} Nxc5 {[%emt 0:04:45] [#]} 12. Be3 $146 {[%emt 0:00:53]} ({Predecessor:} 12. Nxc5 Bxc5 13. O-O O-O 14. Qa4 Bd7 15. Qg4 Kh8 16. Be3 Bxe3 17. fxe3 h6 18. Nd4 {0-1 (26) Marholev,D (2199)-Konstantinov,A (2251) Novi Sad 2017}) 12... Na4 {[%emt 0:18:19]} (12... Nxb3 $11 {feels stronger.} 13. Qxb3 Bd7) 13. Qd4 $14 {[%emt 0:12:01]} Bd7 {[%emt 0:00:30]} 14. O-O $1 {[%emt 0:01:01][%cal Bh1f1,Bf1c1,Bc1c2][%mdl 32]} Rb8 {[%emt 0:02:12]} 15. Rfc1 {[%emt 0:06:25]} Rb7 {[%emt 0:05:00]} 16. Rc2 {[%emt 0:05:10]} Qb8 {[%emt 0:09:21]} (16... h6 $16 {was called for.}) 17. Rac1 $18 {[%emt 0:10:05] White is clearly better.} Rb4 {[%emt 0:10:11]} 18. Qd3 {[%emt 0:07:48] &Bianco is much more active.} Rc4 {[%emt 0:09:19]} (18... Qb5 $142 19. Qxb5 axb5) 19. Bd4 {[%emt 0:14:04]} ({Inferior is} 19. Rxc4 Nxb2 20. Rc8+ Bxc8 $11) 19... Nb6 {[%emt 0:13:40]} 20. Na5 {[%emt 0:03:04]} ({Much less strong is} 20. Rxc4 $6 dxc4 21. Qc3 cxb3 $16) 20... Rxc2 {[%emt 0:03:10] Black got outplayed after the opening.  Weighted Error Value: White=0.15 (very precise) /Black=0.35} 1/2-1/2

[Event "Uruguayan Championship 2022"]
[Site "Montevideo"]
[Date "2022.04.15"]
[Round "8.6"]
[White "Rodi, Luis Ernesto"]
[Black "Lopez Azambuja, Nicolas"]
[Result "1/2-1/2"]
[ECO "C15"]
[WhiteElo "2347"]
[BlackElo "2318"]
[Annotator "TA"]
[PlyCount "114"]
[EventDate "2022.04.08"]
[EventType "tourn"]
[EventCountry "URU"]
[SourceTitle "playchess.com"]
[Source "ChessBase"]
[SourceQuality "1"]
[TimeControl "40/5400+30:1800+30"]

{[%evp 10,114,16,12,22,12,0,0,0,0,0,0,19,0,29,16,18,0,17,17,43,21,19,25,31,3,16,0,0,-11,-6,-30,0,-29,-17,-23,-21,-27,-32,-35,35,24,14,0,8,8,33,19,62,42,42,41,48,0,22,0,42,0,0,0,52,0,70,75,65,24,25,22,119,107,123,65,123,114,94,27,44,22,30,0,2,2,29,27,23,30,81,81,79,78,146,147,527,527,527,524,512,0,0,0,0,0,0,0,0,0,0]} 1. e4 {[%emt 0:00:04]} e6 {[%emt 0:00:12]} 2. d4 {[%emt 0:00:07]} d5 {[%emt 0:00:09]} 3. Nc3 {[%emt 0:00:25]} Bb4 {[%emt 0:00:13]} 4. exd5 exd5 {[%emt 0:00:06]} 5. Bd3 {[%emt 0:00:13]} Nc6 {[%emt 0:00:38]} 6. Nf3 {[%emt 0:01:04]} Nge7 {[%emt 0:01:23] C01: French: Exchange Variation.} 7. O-O {[%emt 0:00:10]} Bg4 {[%emt 0:02:58][%cal Oc6d4]} 8. h3 {[%emt 0:00:08]} Bh5 {[%emt 0:04:17][%cal Oc6d4]} 9. a3 {[%emt 0:00:07]} Bxc3 {[%emt 0:00:35]} 10. bxc3 {[%emt 0:00:07]} f6 {[%emt 0:04:24]} 11. Re1 {[%emt 0:02:16]} O-O {[%emt 0:02:21] [#]} 12. a4 $146 {[%emt 0:00:18]} ({Predecessor:} 12. Qe2 Re8 13. g4 Bg6 14. Bxg6 Nxg6 15. Qd3 Rxe1+ 16. Nxe1 Qd6 17. Qg3 Qxg3+ 18. fxg3 {0-1 (57) Sinnhoefer,J (1919)-Schlangenotto,N (2008) Playchess.com INT 2020}) 12... Re8 {[%emt 0:01:36]} 13. Ba3 {[%emt 0:03:56][%cal Oa4a5]} Bg6 {[%emt 0:08:05]} 14. c4 {[%emt 0:03:51]} Bf7 {[%emt 0:10:23]} (14... Qd7 {keeps more tension.} 15. a5 b6 16. cxd5 Nxd5 17. Bxg6 hxg6 18. c4 Nf4) 15. Bxe7 {[%emt 0:08:05]} (15. cxd5 {is interesting.} Nxd5 16. Rxe8+ Qxe8 17. c4) 15... Rxe7 {[%emt 0:04:19]} 16. Rxe7 {[%emt 0:01:59]} Nxe7 {[%emt 0:03:24][%cal Bc6e7,Be7d5,Bd5f4][%mdl 32]} 17. cxd5 {[%emt 0:01:33]} Nxd5 {[%emt 0:02:28]} 18. Qd2 {[%emt 0:02:38]} a5 {[%emt 0:05:57]} 19. c3 {[%emt 0:05:44]} Qd6 {[%emt 0:01:37]} 20. Qc2 {[%emt 0:04:47]} h6 {[%emt 0:02:32]} 21. Nd2 {[%emt 0:11:57]} Nf4 {[%emt 0:04:50]} 22. Bf1 $1 {[%emt 0:09:39]} Re8 {[%emt 0:04:26]} 23. Nc4 {[%emt 0:03:06]} Qd5 {[%emt 0:01:55][%cal Oe8e2]} 24. Ne3 {[%emt 0:01:28]} Qd6 {[%emt 0:02:00]} (24... Qg5 $15 25. Kh2 Nd5 26. Nxd5 Qxd5) 25. g3 $14 {[%emt 0:07:53] aiming for Nf5.} Ng6 {[%emt 0:04:42][%cal Oe8e3]} 26. Re1 {[%emt 0:02:44]} b6 {[%emt 0:02:41]} 27. Bb5 {[%emt 0:05:16]} Re7 {[%emt 0:01:23]} (27... c6 $5 {[%cal Rc6b5]} 28. Bd3 Ne7 $11) 28. Re2 {[%emt 0:01:34]} Qa3 {[%emt 0:03:23]} 29. Kh2 {[%emt 0:05:37]} Qb3 {[%emt 0:02:41]} 30. Qd2 {[%emt 0:01:18]} Qe6 {[%emt 0:04:19]} 31. Bc4 {[%emt 0:04:12]} Qd7 {[%emt 0:01:38]} 32. Bb5 {[%emt 0:00:58]} Qe6 {[%emt 0:00:39]} 33. Ng2 {[%emt 0:01:18]} Qd6 {[%emt 0:01:00]} (33... Qb3 $11) 34. Ne3 {[%emt 0:02:29]} Qe6 {[%emt 0:00:22]} 35. Qc2 {[%emt 0:03:05] Hoping for Nf5.} Qb3 $1 {[%emt 0:01:30]} 36. Qxb3 {[%emt 0:00:14]} (36. Qd3 {feels hotter.} Qe6 37. Rd2 Qe4 38. Qxe4 Rxe4 39. d5) 36... Bxb3 {[%emt 0:00:06]} 37. Rb2 {[%emt 0:00:03]} Bf7 {[%emt 0:00:34]} 38. c4 {[%emt 0:00:32]} Nf8 {[%emt 0:06:39]} (38... Re4 $11 {remains equal.}) 39. d5 {[%emt 0:01:23][%cal Oc4c5]} g6 {[%emt 0:02:11]} 40. Rd2 {[%emt 0:00:29]} (40. c5 $1 $16) 40... Kg7 {[%emt 0:03:35]} ({Black should play} 40... f5 $14) 41. c5 $16 {[%emt 0:32:04]} bxc5 {[%emt 0:03:30]} 42. Nc4 {[%emt 0:00:00] &Bianco is more active.} (42. Rc2 $16) 42... Be8 {[%emt 0:04:56]} 43. d6 {[%emt 0:00:00]} cxd6 {[%emt 0:00:36]} 44. Nxd6 {[%emt 0:00:00]} Bxb5 {[%emt 0:00:58]} 45. axb5 $11 {[%emt 0:00:00][%cal Ba4b5,Bb5b6,Bb6b7][%mdl 4128] Endgame Threatening b6. KRN-KRN} Nd7 {[%emt 0:04:44]} 46. Nc8 {[%emt 0:00:00][%mdl 1024] Inhibits Nb6. White has compensation.} Rf7 {[%emt 0:00:08]} 47. b6 {[%emt 0:00:00]} Ne5 {[%emt 0:02:07]} (47... c4 $11) 48. Ra2 $1 $16 {[%emt 0:00:00]} Nc6 {[%emt 0:06:49] [#]} 49. Rc2 $1 {[%emt 0:00:00]} Rf8 {[%emt 0:01:46]} ({Better is} 49... Nd8) 50. b7 {[%emt 0:00:00]} Rf7 $2 {[%emt 0:00:23][%mdl 8192]} (50... Nb8 $16 {is more resistant.}) 51. Nd6 $18 {[%emt 0:00:00]} Rd7 {[%emt 0:00:39] [#]} 52. Rxc5 $1 {[%emt 0:00:00]} Nb8 {[%emt 0:00:14] [#]} 53. Rc8 $2 {[%emt 0:00:00]} Rxd6 $11 {[%emt 0:00:33] The position is equal.} 54. Rxb8 {[%emt 0:00:00][%cal Ob8g8] White threatens Rg8+! and mate.} Rb6 {[%emt 0:00:10]} 55. Kg2 {[%emt 0:00:00]} a4 {[%emt 0:00:09]} 56. Ra8 {[%emt 0:00:00]} Rxb7 {[%emt 0:00:04]} 57. Rxa4 {[%emt 0:00:00]} Re7 {[%emt 0:00:06] Weighted Error Value: White=0.20 (precise) /Black=0.28 (precise)} 1/2-1/2